Workbook

Sheet INDICE
A3: DESCRIPCIÓN | H3: No. ANEXO | I3: CUADRO No. | J3: APLICA (SI/NO)
A4: PARTE I. ANEXOS GENERALES
A6: PREGUNTAS DE PERFILAMIENTO
A7: Preguntas sobre el perfilamiento del sujeto pasivo | H7: PERFILAMIENTO A1 | J7: -
A8: PARTE II. ANEXOS DEL IMPUESTO A LA RENTA
A9: Detalle de la declaración de Impuesto a la Renta (Mapeo) | H9: MAPEO A2 | J9: -
A10: PARTE III. INGRESOS
A11: Ingresos ordinarios | H11: INGRESOS A3 | I11: Cuadro No. 1 | J11: -
A12: Otros ingresos | I12: Cuadro No. 2 | J12: -
A13: PARTE IV. COSTOS Y GASTOS
A14: LIMITE DE DEDUCCIONES | H14: COSTOS Y GASTOS A4 | J14: -
J15: -
A16: PARTE V. CONCILIACIÓN TRIBUTARIA INGRESOS
A17: Detalle de Ingresos exentos / no objeto de impuesto a la renta / sujetos a impuesto a la renta único / sujeto al Rimpe | H17: CONCILIACION INGRESOS A5 | I17: Cuadro No. 1 | J17: -
A18: Conciliación de los ingresos exentos / no objeto de impuesto a la renta / sujetos a impuesto a la renta único / sujetos al RIMPE declarados vs. Libros | I18: Cuadro No. 2 | J18: -
A19: PARTE VI. CONCILIACIÓN TRIBUTARIA COSTOS Y GASTOS
A20: CONCILIACIÓN TRIBUTARIA - DIFERENCIAS PERMANENTES | H20: CONCILIACIÓN COSTOS Y GASTOS A6 | J20: -
J21: -
A22: PARTE VII. BENEFICIOS TRIBUTARIOS
A23: Utiliza beneficios tributarios para el cálculo del impuesto a la renta | I23: Cuadro No.1
A24: Tiene suscritos contratos de inversión | H24: BENEFICIOS TRIBUTARIOS A7 | I24: Cuadro No. 2 | J24: -
A25: Utiliza reducción de tarifa para el pago de impuesto a la renta | I25: Cuadro No. 3 | J25: -
A26: PARTE VII. CRÉDITO TRIBUTARIO
A27: ANÁLISIS DE CRÉDITO TRIBUTARIO | H27: CREDITO TRIBUTARIO A8 | J27: -
J28: -
A29: PARTE VIII. OPERACIONES CON EL EXTERIOR
A30: DETALLE DE PAGOS AL EXTERIOR | H30: COMERCIO EXTERIOR A9 | J30: -
A31: PARTE IX. ANEXOS DE INVENTARIOS
A32: Detalle de los Inventarios | H32: INVENTARIO A10 | J32: -

Sheet PERFILAMIENTO A1
A1: INFORME DE CUMPLIMIENTO TRIBUTARIO | H1: Índice
A3: RAZÓN SOCIAL: | C3: COMPAÑÍA XYZ S.A.
A4: RUC: | C4: XXXXXXXXXXXXX
A5: EJERCICIO FISCAL AUDITADO: | C5: 2023
A7: ANEXO No.
A8: PREGUNTAS DE PERFILAMIENTO
A10: PREGUNTAS DE PERFILAMIENTO
A11: 1 | B11: Tipo de opinión emitida sobre el cumplimiento de las obligaciones tributarias
A12: 1.1 | B12: Justificación de la opinión emitida
A13: 1.2 | B13: Opinión emitida período anterior
A14: 1.3 | B14: Identificación del auditor del periodo anterior
A15: 1.4 | B15: El auditor del período anterior es el mismo del período actual
A16: 1.5 | B16: En el reporte de diferencias que se ingresa en la AT se ingresan todas las diferencias o se lo hace por materialidad
A17: 1.6 | B17: Se ha efectuado una declaración sustitiva posterior al ICT
A18: 1.7 | B18: Se realiza un seguimiento de las diferencias del año anterior
A19: 2 | B19: Criterio utilizado para el cálculo de la materialidad sobre el análisis de las obligaciones tributarias
A20: 2.1 | B20: Rubro utilizado para el cálculo de la materialidad
A21: 2.2 | B21: Justificación del criterio y rubro utilizado para la materialidad establecida
A22: 2.3 | B22: Todos los hechos o situaciones relevantes analizados superaron la materialidad determinada
A23: 2.4 | B23: Se realizó un seguimiento a las observaciones tributarias emitidas por el auditor externo del año anterior.
A24: 2.5 | B24: En el período fiscal en revisión se mantienen las observaciones del año anterior
A25: 3 | B25: El proceso de registro, declaraciones y pago de los impuestos a cargo del sujeto pasivo fueron realizados oportunamente en las fechas establecidas y por el total de las operaciones del período
A26: 3.1 | B26: El sujeto pasivo ha realizado sustitutivas de sus declaración
A27: 3.2 | B27: Las sustitutivas tuvieron efectos en el pago de impuestos o incremento del crédito tributario
A28: 3.3 | B28: Cuales son los motivos principales de las sustitutivas
A29: 3.4 | B29: Si el contribuyente ha realizado sustitutivas de IR en períodos anteriores ha realizado la actualización de la información en la Superintendencia de Compañías y del ICT
A30: 3.5 | B30: El sujeto pasivo hace uso de beneficios tributarios
A31: 3.6 | B31: El uso de beneficios tributarios cumplen con los requisitos establecidos en la normativa
A32: 3.7 | B32: Los beneficios e incentivos tributarios están adecuadamente soportados en documentación y pagos
A33: 3.8 | B33: Se realizó la revisión de informes de entidades externas sobre observaciones que tengan incidencia tributaria
A34: 3 | B34: Existe suficiente evidencia para respaldar la opinión
A35: 4 | B35: La sociedad auditada cuentas con políticas y procedimientos contables
A36: 4.1 | B36: Se evaluó que la sociedad auditada cumple a cabalidad con las políticas y procedimientos establecidas
A37: 5 | B37: El auditor revisó los contratos de clientes, proveedores y otros que afecten el período fiscal
A38: 5.1 | B38: Se identificaron contratos que se incumplieron
A39: 5.2 | B39: El incumplimiento de los contratos tienen afectación tributaria
A40: 6 | B40: El sistema informático utilizado por la sociedad garantiza la seguridad, integridad y confianza de los resultados de la información procesada y almacenada
A41: 6.1 | B41: Justificaciones para la opinión emitida sobre el sistema informático
A42: 6.2 | B42: Las observaciones que se hicieron sobre el sistema informáticos, tiene afectación tributaria
A43: 7 | B43: El proceso de registro y archivos de documentos soporte del proceso contable brinda la seguridad, integridad y confianza de los resultados de la información de los estados financieros presentados
A44: 7.1 | B44: Existieron observaciones sobre la documentación soporte del proceso contable que el contribuyente mantiene
A45: 8. | B45: Se realizó un seguimiento a las observaciones tributarias emitidas por el auditor externo del año anterior.
A46: 8.1 | B46: Justificación de su seguimiento o no seguimiento.
A47: 9. | B47: Transacciones con el Exterior
A48: 9.1 | B48: Es importador
A49: 9.2 | B49: Es Exportador
A50: 9.3 | B50: Tiene relaciones comerciales, o cualquier transacción en paraisos fiscales
A52: 10 | B52: BENEFICIOS TRIBUTARIOS
A53: 10.1 | B53: Utiliza beneficios tributarios para el cálculo del impuesto a la renta | C53: SI / No | D53: Anexo X | E53: Cuadro No.
A54: 10.2 | B54: Tiene suscritos contratos de inversión | C54: SI / No | D54: Anexo X | E54: Cuadro No.
A55: 10.3 | B55: Utiliza reducción de tarifa para el pago de impuesto a la renta | C55: SI / No | D55: Anexo X | E55: Cuadro No.
A57: 11 | B57: BENEFICIOS TRIBUTARIOS
A58: 11.1 | B58: Utiliza beneficios tributarios para el cálculo del impuesto a la renta

Sheet MAPEO DE LA DECLARACIÓN A2
A1: INFORME DE CUMPLIMIENTO TRIBUTARIO | H1: Índice
A3: RAZÓN SOCIAL: | C3: COMPAÑÍA XYZ S.A.
A4: RUC: | C4: XXXXXXXXXXXXX
A5: EJERCICIO FISCAL AUDITADO: | C5: 2023
A6: NUMERO DE ADHESIVO DE LA DECLARACIÓN | C6: XXXXXXXXXXXXX
A7: ANEXO No. 2
A8: DETALLE DE LA DECLARACIÓN DE IMPUESTO A LA RENTA
A10: Datos de la declaración del Impuesto a la Renta (a) | D10: Información contable | J10: Diferencias | K10: Observaciones
A11: Número de Casillero | B11: Nombre del Casillero | C11: Valor declarado | D11: Código de cuenta contable (al máximo detalle) | E11: Nombre de la Cuenta | F11: Saldo inicial | G11: Movimientos del año (Debe) | H11: Movimientos del año (Haber) | I11: Saldo final
C12: {1} | D12: (b) | F12: {2} (b) | G12: {3} (b) | H12: {4} (b) | I12: {5}={2+3-4} (b) | J12: {6}={5-1} (c) | K12: ( d)
A13: 311 | B13: Efectivo y equivalentes al efectivo | C13: 100,000.00 | D13: 1.1.1.01.01.01 | E13: Caja efectivo | F13: 2,000.00 | G13: 47,000.00 | H13: 15,000.00 | I13: =+F13+G13-H13 -> 34,000.00 | J13: =+SUM(I13:I15,-C13) -> 0.00
D14: 1.1.1.02.01.01 | E14: Banco del Pichincha 4977120064 | F14: 35,000.00 | G14: 40,000.00 | H14: 20,000.00 | I14: =+F14+G14-H14 -> 55,000.00
D15: 1.1.1.02.01.02 | E15: Banco del Pichincha 3265234500 | F15: 10,000.00 | G15: 5,000.00 | H15: 4,000.00 | I15: =+F15+G15-H15 -> 11,000.00
C16: 0.00 | F16: 0.00 | G16: =+F16 -> 0.00 | H16: =+G16 -> 0.00 | I16: =+H16 -> 0.00 | J16: =+G16-C16 -> 0.00
C17: 0.00 | F17: 0.00 | G17: =+F17 -> 0.00 | H17: 0.00 | I17: 0.00 | J17: 0.00
C18: 0.00 | F18: 0.00 | G18: 0.00 | H18: 0.00 | I18: 0.00 | J18: 0.00
C19: 0.00 | F19: 0.00 | G19: 0.00 | H19: 0.00 | I19: 0.00 | J19: 0.00
C20: 0.00 | F20: 0.00 | G20: 0.00 | H20: 0.00 | I20: 0.00 | J20: 0.00
C21: 0.00 | F21: 0.00 | G21: 0.00 | H21: 0.00 | I21: 0.00 | J21: 0.00
C22: 0.00 | F22: 0.00 | G22: 0.00 | H22: 0.00 | I22: 0.00 | J22: 0.00
C23: 0.00 | F23: 0.00 | G23: 0.00 | H23: 0.00 | I23: 0.00 | J23: 0.00
C24: 0.00 | F24: 0.00 | G24: 0.00 | H24: 0.00 | I24: 0.00 | J24: 0.00
C25: 0.00 | F25: 0.00 | G25: 0.00 | H25: 0.00 | I25: 0.00 | J25: 0.00
C26: 0.00 | F26: 0.00 | G26: 0.00 | H26: 0.00 | I26: 0.00 | J26: 0.00
A29: REFERENCIAS:
A30: a) Corresponde al número, nombre y valor del casillero del formulario declaración del impuesto a la renta válida y presentación de estados financieros para sociedades y establecimientos permanentes. b) La información contable conforme los registros de acuerdo a los códigos y nombres de las cuentas contables deberán ser ingresados al máximo detalle posible, de tal forma que los componentes de cada casillero se puedan identificar claramente hasta la cuenta auxiliar contable desde el saldo inicial, los movimientos del período (debe haber) y el saldo final de acuerdo al Balance de Comprobación; que corresponde al valor declarado y auditado. c) En caso de existir diferencias, se debe revelar la explicación de las mismas y referenciar en la columna "Observaciones" de este Anexo; con mayor detalle se explicará en las 'Recomendaciones sobre Aspectos Tributarios'. d) Registre las observaciones realizadas por la Administración Tributaria correspondiente a procesos de determinaciones tributarias o por liquidación de diferencias en ejercicios fiscales anteriores, además indicar si requirió declaración sustitutiva que afecte al casillero declarado.
A34: CERTIFICACIÓN: Al cargar el presente Anexo en la plataforma del 'SRI en Línea' previa autenticación e ingreso con usuario y contraseña, el representante legal del sujeto pasivo y su contador certifican la veracidad del contenido de este anexo del Informe de Cumplimiento Tributario.

Sheet INGRESOS A3
A1: INFORME DE CUMPLIMIENTO TRIBUTARIO | H1: Índice
A3: RAZÓN SOCIAL: | C3: COMPAÑÍA XYZ S.A.
A4: RUC: | C4: XXXXXXXXXXXXX
A5: EJERCICIO FISCAL AUDITADO: | C5: 2023
A7: ANEXO No. 3
A8: CUADRO No. 1 INGRESOS ORDINARIOS
A10: Resumen ingresos mensuales ordinarrios
A12: Mes Emisión | B12: DECALRACIÓN IMPUESTO A LA RENTA | G12: REGISTROS CONTABLES (i) | J12: DECLARACIÓN IVA (ii) | O12: FACTURACIÓN ELECTRÓNICA (iii)
B13: Ventas tarifa 0% | C13: Ventas tarifa 12% | D13: Exportaciones | E13: Otros Ingresos gravados | F13: TOTAL DE INGRESOS GRAVADOS | G13: DEBE | H13: HABER | I13: SALDO | J13: Ventas locales tarifa 0% | K13: Ventas Locales tarifa diferente de 0% | L13: Ventas locales 5% | M13: Exportaciones de bienes y Servicios | N13: TOTAL VENTAS | O13: Emitidas | P13: anuladas / Notas de crédito | Q13: SALDO
B14: (a) | C14: (b) | D14: (c ) | E14: (d) | F14: (e=a+b+c+d) | G14: (x) | H14: (y) | I14: (z=y-x) | J14: (a1) | K14: (b1) | L14: (c1) | M14: (d1) | N14: (e1=a1+b1+c1+d1) | O14: (x) | P14: (y) | Q14: (z=y-x)
A15: Enero | F15: 1,339,812.61
A16: Febrero | F16: 859,316.64
A17: Marzo | F17: 400,759.77
A18: Abril | F18: 484,762.24
A19: Mayo | F19: 729,264.34
A20: Junio | F20: 782,215.15
A21: Julio | F21: 2,117,194.77
A22: Agosto | F22: 905,986.89
A23: Septiembre | F23: 627,949.44
A24: Octubre | F24: 859,170.71
A25: Noviembre | F25: 3,251,664.83
A26: Diciembre | F26: 4,498,983.88
A27: Total general | B27: =SUM(B15:B26) -> 0.00 | C27: =SUM(C15:C26) -> 0.00 | F27: =SUM(F15:F26) -> 16,857,081.27
A30: Nota:
A31: (i) | B31: Se reportaron diferencias entre los valores registrados en su declaración de Impuesto a la Renta y los registros contables? | N31: (Si) (NO)
B32: Si su respuestá fue NO: Explicar la razón
A34: (i1) | B34: Se reportan diferencias entre los valores registrados en su declaración de Impuesto a la Renta y los reportados y soportados por el SENAE | N34: (Si) (NO)
B35: Si su respuestá fue NO: Explicar la razón
A37: (i2) | B37: Explicar a que corresponden los débitos y/o ajustes que se reportan en la cuenta de ventas
A39: (ii) | B39: Se reportaron diferencias entre los valores registrados en su declaración de Impuesto a la Renta y los registros en la declaración de IVA (excluir activos)? | N39: (Si) (NO)
B40: Si su respuestá fue NO: Explicar la razón
A42: (iii) | B42: Se reportaron diferencias entre los valores registrados en su declaración de Impuesto a la Renta y el detalle de la facturación)? | N42: (Si) (NO)
B43: Si su respuestá fue NO: Explicar la razón
A45: (iii1) | B45: Emitir las justificación de las razones de las facturas anuladas y notas de crédito emitidas que afectan las ventas
A47: (iii2) | B47: El total de las ventas realizadas en el período son consistentes con la información de los ingresos que constan en sus cuentas bancarias (ventas pagadas) y las cuentas pendientes de cobro? | N47: (Si) (NO)
B48: Si su respuestá fue NO: Explicar la razón
A51: 2. CUADRO No. 2 OTROS INGRESOS
A53: POR DIVIDENDOS
A55: Dividendos Recibidos Local | E55: Dividendos Recibidos Extranjero | F55: Total de Dividendos Recibidos ($) (i) | G55: Valores reportados por auditoría (i1) | H55: Metodología utilizada para el cálculo del registro | I55: Justificación diferencia
A56: Monto Dividendo ($) | C56: IR atribuible al dividendo ($) | D56: Base Imponible Retención Accionista ($) | E56: Valor dividendo distribuido desde el exterior ($)
A59: (i) | B59: Se reportaron diferencias entre los valores cálculados por auditoría y los reportados por el contribuyente como dividendos recibidos por el sujeto pasivo? | K59: (Si) (NO)
B60: Si su respuestá fue SI: Explicar la razón
A65: Concepto | E65: Ingresos | F65: Costos / Gastos | G65: Ganancias neta / Utilidad (a) | H65: Auditoria (b) | I65: Diferencias (c=a-b) | J65: Metodología utilizada | K65: Justificación Diferencias (ii)
A66: Mediciones de activos biológicos
A67: Medición de propiedades de inversión
A68: Medición de instrumentos financieros
A69: Diferencias en cambio
A70: Venta de propiedades, planta y equipo
A71: Venta enajenación de derechos representativos de capita
A72: Subvenciones del gobierno y otras ayudas gubernamentales (devengados)
A74: (ii) | B74: Si se reportaron diferencias entre los valores cálculados por auditoría y los reportados por el contribuyente, debe explicarse las diferencias.
B75: Si su respuestá fue SI: Explicar las razones
A77: Concepto | E77: Deterioro contabilizado (a) | F77: Valor activo si no hubiera habido deterioro (b) | G77: Valor del activo con deterioro (c) | H77: Diferencia (d=b-c) | I77: Reversión imputada al PyG | J77: Revisión Auditoría | K77: Metodología utilizada | L77: Justificación Diferencias (iii)
A78: Ganancias Netas por Reversiones de deterioro | E78: 567.34 | F78: 1,200.00 | G78: 1,426.93 | H78: =+G78-F78 -> 226.93 | I78: =+E78-H78 -> 340.41 | J78: 380 | K78: Aplicación NIC
A79: Ganancias Netas Por Reversiones de provisiones
A80: Ganancias Netas Por Reversiones de Pasivos por beneficios a los empleados
A82: (iii) | B82: Si se reportaron diferencias entre los valores cálculados por auditoría y los reportados por el contribuyente, debe explicarse las diferencias.
B83: Si su respuestá fue SI: Explicar las razones
D87: Generación año anterior | F87: 23,511.83
F88: 18,358.90
F89: =+F87-F88 -> 5,152.93 | G89: 5732.26
F91: =+F88+G89 -> 24,091.16
F92: =+F91-F87 -> 579.33

Sheet COSTOS GASTOS A4
A1: INFORME DE CUMPLIMIENTO TRIBUTARIO | F1: Índice
A3: RAZÓN SOCIAL: | B3: COMPAÑÍA XYZ S.A.
A4: RUC: | B4: XXXXXXXXXXXXX
A5: EJERCICIO FISCAL: | B5: 2023
A7: ANEXO No. 4
A8: REVISIÓN GENERAL DE LÍMITES DE DEDUCCIONES
A11: GASTOS DE GESTIÓN
A12: Cálculo del valor máximo de deducibilidad de gastos de gestión
A14: No. Casillero declaración de I. Renta (a) | B14: Descripción | E14: Referencia | F14: Valor reportado por el contribuyente (a) | G14: Valor verificado por el auditor externo (b) | H14: Diferencias (c=a-b) | I14: Observaciones
A15: 7992 | B15: Total gastos declarados | E15: {1} | F15: 0.00
A16: 7185 | B16: Gastos de gestión declarados | E16: {2} | F16: 0.00
A17: - | B17: Total gastos generales (base para el cálculo del valor máximo de deducibilidad de gastos de gestión) | E17: {3}={1-2} | F17: =+F15-F16 -> 0.00
A18: - | B18: Porcentaje máximo de deducibilidad de gastos de gestión (b) | E18: {4} | F18: 2.00%
A19: - | B19: Valor máximo de deducibilidad de gastos de gestión | E19: {5}={3*4} | F19: =F17*F18 -> 0.00
A21: 7185 | B21: Gastos de gestión declarados | E21: {6} | F21: 0.00
A22: 7186 | B22: Gastos de gestión declarados como no deducibles | E22: {7} | F22: 0.00
A23: - | B23: Gastos de gestión declarados como deducibles | E23: {8}={6-7} | F23: =+F21-F22 -> 0.00
A25: - | B25: Diferencia en el valor máximo de deducibilidad de gastos de gestión (c) | E25: {9}={8-5} | F25: =IF((F23-F19)<=0,0,(F23-F19)) -> 0.00
A28: GASTOS DE VIAJE
A29: Cálculo del valor máximo de deducibilidad de gastos de viaje
A31: No. Casillero declaración de I. Renta (a) | B31: Descripción | E31: Referencia | F31: Valor | G31: Observaciones
A32: 6999 | B32: Total Ingresos | E32: {1} | F32: 0.00
A33: 804 | B33: Dividendos exentos y efectos por método de participación | E33: {2} | F33: 0.00
A34: 805 | B34: Otras rentas exentas e ingresos no objeto de impuesto a la renta | E34: {3} | F34: 0.00
A35: 812 | B35: Ingresos sujetos a impuesto a la renta único | E35: {4} | F35: 0.00
A36: 1116 | B36: Diferencias temporarias - Por contratos de construcción (generación) | E36: {5} | F36: 0.00
A37: 828 | B37: Diferencias temporarias - Por mediciones de activos biológicos al valor razonable menos costos de venta / Ingresos (generación) | E37: {6} | F37: 0.00
A38: 834 | B38: Diferencias temporarias - Por otras diferencias temporarias (generación) (d) | E38: {7} | F38: 0.00
A39: 1117 | B39: Diferencias temporarias - Por contratos de construcción (reversión) | E39: {8} | F39: 0.00
A40: 829 | B40: Diferencias temporarias - Por mediciones de activos biológicos al valor razonable menos costos de venta / Ingresos (reversión) | E40: {9} | F40: 0.00
A41: 835 | B41: Diferencias temporarias - Por otras diferencias temporarias (reversión) (d) | E41: {10} | F41: 0.00
A42: - | B42: Total ingresos gravados (base para el cálculo del valor máximo de deducibilidad de gastos de viaje) | E42: {11}={1-2-3-4-5-6-7+8+9+10} | F42: =+F32-F33-F34-F35-F36-F37-F38+F39+F40+F41 -> 0.00
A43: - | B43: Porcentaje máximo de deducibilidad de gastos de viaje | E43: {12} | F43: 3.00%
A44: - | B44: Valor máximo de deducibilidad de gastos de viaje | E44: {13}={11*12} | F44: =+F42*F43 -> 0.00
A46: 7182 | B46: Gastos de viaje declarados | E46: {14} | F46: 0.00
A47: 7183 | B47: Gastos de viaje declarados como no deducibles | E47: {15} | F47: 0.00
A48: - | B48: Gastos de viaje declarados como deducibles | E48: {16}={14-15} | F48: =+F46-F47 -> 0.00
A50: - | B50: Diferencia en el valor máximo de deducibilidad de gastos de viaje (e) | E50: {17}={16-13} | F50: =IF((F48-F44)<=0,0,(F48-F44)) -> 0.00
A52: GASTOS INDIRECTOS ASIGNADOS DESDE EL EXTERIOR POR PARTES RELACIONADAS
A53: Cálculo del valor máximo de deducibilidad de gastos indirectos asignados desde el exterior por partes relacionadas
A55: No. Casillero declaración de I. Renta (a) | B55: Descripción | E55: Referencia | F55: Valor | G55: Observaciones
A56: - | B56: Utilidad gravable (base imponible) sin incluir límites | E56: {1} | F56: 0.00
A57: 7205+7206 | B57: Costos y gastos indirectos asignados desde el exterior por partes relacionadas declarados | E57: {2} | F57: 0.00
A58: - | B58: Base imponible más el valor de los gastos indirectos asignados desde el exterior por partes relacionadas (base para el cálculo del valor máximo de deducibilidad de los gastos indirectos asignados desde el exterior por partes relacionadas) | E58: {3}={1+2} | F58: =+F56+F57 -> 0.00
A59: - | B59: Porcentaje máximo de deducibilidad de gastos indirectos asignados desde el exterior por partes relacionadas | E59: {4} | F59: 5.00%
A60: - | B60: Valor máximo de deducibilidad de gastos indirectos asignados desde el exterior por partes relacionadas | E60: {5}={3*4} | F60: =+IF(F56<=0,0,F58*F59) -> 0.00
A62: 7205+7206 | B62: Costos y gastos indirectos asignados desde el exterior por partes relacionadas declarados | E62: {6} | F62: 0.00
A63: 7207 | B63: Costos y gastos indirectos asignados desde el exterior por partes relacionadas declarados como no deducibles | E63: {7} | F63: 0.00
A64: - | B64: Costos y gastos indirectos asignados desde el exterior por partes relacionadas declarados como deducibles | E64: {8}={6-7} | F64: =+F62-F63 -> 0.00
A66: - | B66: Diferencia en el valor máximo de deducibilidad de gastos indirectos asignados desde el exterior por partes relacionadas (f) | E66: {9}={8-5} | F66: =IF((F64-F60)<=0,0,(F64-F60)) -> 0.00
A68: GASTOS DE PROMOCIÓN Y PUBLICIDAD
A69: Cálculo del valor máximo de deducibilidad de gastos de promoción y publicidad
A71: No. Casillero declaración de I. Renta (a) | B71: Descripción | E71: Referencia | F71: Valor | G71: Observaciones
A72: 6999 | B72: Total Ingresos | E72: {1} | F72: 0.00
A73: 804 | B73: Dividendos exentos y efectos por método de participación | E73: {2} | F73: 0.00
A74: 805 | B74: Otras rentas exentas e ingresos no objeto de impuesto a la renta | E74: {3} | F74: 0.00
A75: 812 | B75: Ingresos sujetos a impuesto a la renta único | E75: {4} | F75: 0.00
A76: 1116 | B76: Diferencias temporarias - Por contratos de construcción (generación) | E76: {5} | F76: 0.00
A77: 828 | B77: Diferencias temporarias - Por mediciones de activos biológicos al valor razonable menos costos de venta / Ingresos (generación) | E77: {6} | F77: 0.00
A78: 834 | B78: Diferencias temporarias - Por otras diferencias temporarias (generación) (d) | E78: {7} | F78: 0.00
A79: 1117 | B79: Diferencias temporarias - Por contratos de construcción (reversión) | E79: {8} | F79: 0.00
A80: 829 | B80: Diferencias temporarias - Por mediciones de activos biológicos al valor razonable menos costos de venta / Ingresos (reversión) | E80: {9} | F80: 0.00
A81: 835 | B81: Diferencias temporarias - Por otras diferencias temporarias (reversión) (d) | E81: {10} | F81: 0.00
A82: - | B82: Total ingresos gravados (base para el cálculo del valor máximo de deducibilidad de gastos de promoción y publicidad) | E82: {11}={1-2-3-4-5-6-7+8+9+10} | F82: =+F72-F73-F74-F75-F76-F77-F78+F79+F80+F81 -> 0.00
A83: - | B83: Porcentaje máximo de deducibilidad de gastos de promoción y publicidad (g) | E83: {12} | F83: 20.00%
A84: - | B84: Valor máximo de deducibilidad de gastos de promoción y publicidad | E84: {13}={11*12} | F84: =+F82*F83 -> 0.00
A86: 7173 | B86: Gastos de promoción y publicidad declarados | E86: {14} | F86: 0.00
A87: 7174 | B87: Gastos de promoción y publicidad declarados como no deducibles | E87: {15} | F87: 0.00
A88: - | B88: Gastos de promoción y publicidad declarados como deducibles | E88: {16}={14-15} | F88: =+F86-F87 -> 0.00
A90: - | B90: Diferencia en el valor máximo de deducibilidad de gastos de promoción y publicidad (h) | E90: {17}={16-13} | F90: =IF((F88-F84)<=0,0,(F88-F84)) -> 0.00
A93: GASTOS DE INTERESES POR CRÉDITOS DEL EXTERIOR CON PARTES RELACIONADAS
A94: Cálculo del valor máximo de deducibilidad de gastos de intereses por créditos del exterior con partes relacionadas
A96: No. Casillero declaración de I. Renta (a) | B96: Descripción | E96: Referencia | F96: Valor | G96: Observaciones
A97: - | B97: Valor total del endeudamiento externo (i) | E97: {1} | F97: 3,600,000.00
A98: 698 | B98: Total Patrimonio | E98: {2} | F98: 600,000.00
A99: - | B99: Relación entre el total del endeudamiento externo y el patrimonio del contribuyente | E99: {3}={1/2} | F99: =+F97/F98 -> 600.00%
A100: - | B100: Porcentaje máximo de la relación entre el total del endeudamiento externo y el patrimonio para la deducibilidad de intereses por créditos del exterior con partes relacionadas (j) | E100: {4} | F100: 300.00%
A101: - | B101: Valor de intereses por créditos del exterior con partes relacionadas según el contribuyente | E101: {5} | F101: 100,000.00
A102: - | B102: Valor máximo de deducibilidad de gastos de intereses por créditos del exterior con partes relacionadas (k) | E102: {6}={(5*4) / 3} | F102: =IF(F99>F100,((F101*F100)/F99),F101) -> 50,000.00
A104: 7278+7290 | B104: Gastos de intereses por créditos del exterior con partes relacionadas declarados | E104: {7} | F104: =+F101 -> 100,000.00
A105: 7279+7291 | B105: Gastos de intereses por créditos del exterior con por partes relacionadas declarados como no deducibles | E105: {8} | F105: 0.00
A106: - | B106: Gastos de intereses por créditos del exterior con partes relacionadas declarados como deducibles | E106: {9}={7-8} | F106: =+F104-F105 -> 100,000.00
A108: - | B108: Diferencia en el valor máximo de deducibilidad de gastos de intereses por créditos del exterior con partes relacionadas (l) | E108: {10}={9-6} | F108: =IF((F106-F102)<=0,0,(F106-F102)) -> 50,000.00
A110: GASTOS DE INSTALACIÓN, ORGANIZACIÓN Y SIMILARES
A111: Cálculo del valor máximo de deducibilidad de gastos de instalación, organización y similares
A113: No. Casillero declaración de I. Renta (a) | B113: Descripción | E113: Referencia | F113: Valor | G113: Observaciones
A114: - | B114: Utilidad gravable (base imponible) | E114: {1} | F114: 100,000.00
A115: 7235+7236 | B115: Costos y gastos de instalación, organización y similares | E115: {2} | F115: 0.00
A116: - | B116: Base imponible más el valor de los gastos de instalación, organización y similares | E116: {3}={1+2} | F116: =+F114+F115 -> 100,000.00
A117: - | B117: Porcentaje máximo de deducibilidad de gastos de instalación, organización y similares (m) | E117: {4} | F117: 5.00%
A118: - | B118: Valor máximo de deducibilidad de gastos de instalación, organización y similares | E118: {5}={3*4} | F118: =+F116*F117 -> 5,000.00
A120: 7235+7236 | B120: Costos y gastos de instalación, organización y similares declarados | E120: {6} | F120: 10,000.00
A121: 7237 | B121: Costos y gastos de instalación, organización y similares declarados como no deducibles | E121: {7} | F121: 2,000.00
A122: - | B122: Costos y gastos de instalación, organización y similares declarados como deducibles | E122: {8}={6-7} | F122: =+F120-F121 -> 8,000.00
A124: - | B124: Diferencia en el valor máximo de deducibilidad de gastos de instalación, organización y similares (n) | E124: {9}={8-5} | F124: =IF((F122-F118)<=0,0,(F122-F118)) -> 3,000.00
A127: DETERIORO ACUMULADO CUENTAS INCOBRABLES
A128: Cálculo del deterioro acumulado de cuentas incobrables
A130: No. Casillero declaración de I. Renta (a) | B130: Descripción | F130: Referencia | G130: Valor | H130: Observaciones
A131: - | B131: Saldo de la cartera total del período corriente | F131: (c= a+b) | G131: =G132+G133 -> 10,000.00
B132: Relacionados | F132: (a) | G132: 5,000.00
B133: No relacionados | F133: (b) | G133: 5,000.00
A135: - | B135: Porcentaje máximo del límite del deterioro acumulado correspondiente a créditos incobrables (o) | F135: (d) | G135: 10.00%
A136: - | B136: Límite del valor del deterioro acumulado correspondiente a créditos incobrables | F136: (e= c*d) | G136: =G131*G135 -> 1,000.00
A137: - | B137: Valor del deterioro acumulado correspondiente a créditos incobrables (p) | F137: (f) | G137: 996.00
A138: - | B138: Valor para alcanzar el límite en el deterioro acumulado correspondiente a créditos incobrables | F138: (g= e - f) | G138: =G136-G137 -> 4.00
A141: GASTOS DETERIORO CUENTAS INCOBRABLES DEL PERÍODO
A142: Cálculo del gasto por deterioro en el valor de cuentas incobrables
A144: No. Casillero declaración de I. Renta (a) | B144: Descripción | F144: Referencia | G144: Valor | H144: Observaciones
A145: - | B145: Créditos comerciales concedidos en el ejercicio fiscal auditado a No Relacionados y que se encuentran pendientes de cobro. | F145: (a) | G145: 500.00
A146: - | B146: Porcentaje máximo de deducibilidad por deterioro en el valor de activos financieros (provisiones para créditos incobrables) | F146: (b) | G146: 1.00%
A147: - | B147: Cálculo del valor de deducibilidad de gastos por deterioro en el valor de cuentas por cobrar (si existe un valor pendiente para alcanzar el límite del deterioro acumulado) | F147: (c= a*b) | G147: =IF(G138<=0,0,(G145*G146)) -> 5.00
A148: - | B148: Revisión del valor que puede sobrepasar el límite del deterioro acumulado correspondiente a cuentas por cobrar | F148: (e) | G148: =IF(OR((G147=0),(G147<G138)),0,(G147-G138)) -> 1.00
A149: - | B149: Valor máximo de deducibilidad de gastos por deterioro en el valor de cuentas por cobrar | F149: (f= c - e) | G149: =+G147-G148 -> 4.00
A151: 7113 | B151: Gastos por pérdidas netas por deterioro en el valor de activos financieros (provisiones para créditos incobrables) declarados | F151: (g) | G151: 5.00
A152: 7114 | B152: Gastos por pérdidas netas por deterioro en el valor de activos financieros (provisiones para créditos incobrables) declarados como no deducibles | F152: (h) | G152: 0.00
A153: - | B153: Gastos por pérdidas netas por deterioro en el valor de activos financieros (provisiones para créditos incobrables) declarados como deducibles | F153: (i= g-h) | G153: =+G151-G152 -> 5.00
A155: - | B155: Diferencia no deducible en el valor máximo de deducibilidad de gastos por pérdidas netas por deterioro en el valor de activos financieros (provisiones para créditos incobrables) (q) | F155: (j= i - f) | G155: =+G153-G149 -> 1.00
A158: DONACIONES QUE SE DESTINEN EN CARRERAS DE PREGRADO Y POSTGRADO AFINES A LAS CIENCIAS DE LA EDUCACIÓN
A159: Cálculo del valor máximo de deducibilidad de los recursos y/o donaciones que se destinen en carreras de pregrado y postgrado afines a las Ciencias de la Educación, entregados a Instituciones de Educación Superior
A161: No. Casillero declaración de I. Renta (a) | B161: Descripción | E161: Referencia | F161: Valor | G161: Observaciones
A162: - | B162: Total ingresos gravados / Total de los activos | E162: {1} | F162: 0.00
A163: - | B163: Porcentaje máximo donaciones destinas Educación Superior | E163: {2} | F163: 1.00%
A164: - | B164: Valor máximo de deducibilidad de donaciones entregados a Instituciones de Educación Superior | E164: {3}={1*2} | F164: =+F162*F163 -> 0.00
B166: RUC
B167: RAZÓN SOCIAL
B168: No. ADHESIVO FORMULARIO
B169: No. CERTIFICADO
B170: FECHA DE ENTREGA DE LOS RECURSOS/DONACIONES
B171: DESTINO Y USO
B172: DATOS DE LA INSTITUCIÓN DE EDUCACIÓN SUPERIOR
A173: *6081-6086 | B173: RENTAS NETAS PROVENIENTES DE DONACIONES Y APORTACIONES (PARA USO DE INSTITUCIONES DE CARÁCTER PRIVADOS SIN FINES DE LUCRO) | E173: {4} | F173: 0.00
A175: - | B175: Diferencia en el valor máximo de deducibilidad donaciones entregados a Instituciones de Educación Superior (r) | E175: {5}={4-3} | F175: =IF((F173-F164)<=0,0,(F173-F164)) -> 0.00
A178: DONACIONES, INVERSIONES Y/O PATROCINIOS A PROGRAMAS AMBIENTALES
A179: Cálculo del valor máximo de deducibilidad de donaciones, inversiones y/o patrocinios a programas ambientales
A181: No. Casillero declaración de I. Renta (a) | B181: Descripción | E181: Referencia | F181: Valor | G181: Observaciones
A182: - | B182: Total ingresos gravados | E182: {1} | F182: 0.00
A183: - | B183: Porcentaje máximo Donaciones, inversiones y/o patrocinios a programas ambientales | E183: {2} | F183: 10.00%
A184: - | B184: Valor máximo de deducibilidad de Donaciones, inversiones y/o patrocinios a programas ambientales | E184: {3}={1*2} | F184: =+F182*F183 -> 0.00
B186: RUC
B187: RAZÓN SOCIAL
B188: No. CERTIFICADO
B189: No. ADHESIVO FORMULARIO
B190: FECHA RECEPCIÓN DONACIONES, INVERSIONES Y/O PATROCINIOS A PROGRAMAS AMBIENTALES
B191: UBICACIÓN CIUDAD ECUADOR
B192: DATOS DE LA ORGANIZACIÓN /PROGRAMA RECIBE DONACIONES, INVERSIONES Y/O PATROCINIOS A PROGRAMAS AMBIENTALES
A193: *6081-6086 | B193: RENTAS NETAS PROVENIENTES DE DONACIONES Y APORTACIONES (PARA USO DE INSTITUCIONES DE CARÁCTER PRIVADOS SIN FINES DE LUCRO) | E193: {4} | F193: 0.00
A195: - | B195: Diferencia en el valor máximo de deducibilidad Donaciones, inversiones y/o patrocinios a programas ambientales (s) | E195: {5}={4-3} | F195: =IF((F193-F184)<=0,0,(F193-F184)) -> 0.00
A198: GASTOS OPERACIONES DE REGALÍAS, SERVICIOS TÉCNICOS. ADMINISTRATIVOS Y DE CONSULTORÍA CON PARTES RELACIONADAS
A199: Cálculo del valor máximo de deducibilidad de gastos en operaciones de regalías, servicios técnicos, administrativos y de consultoría con partes relacionadas
A201: No. Casillero declaración de I. Renta (a) | B201: Descripción | E201: Referencia | F201: Valor | G201: Observaciones
B202: Ingresos Gravables | E202: {1} | F202: 0.00
A203: - | B203: Porcentaje máximo de deducibilidad de costos y gastos de operaciones de regalías, servicios técnicos, administrativos y de consultoría con partes relacionadas (t) | E203: {2} | F203: 5.00%
A204: - | B204: Valor máximo de deducibilidad de costos y gastos de operaciones de regalías, servicios técnicos, administrativos y de consultoría con partes relacionadas (u) | E204: {3}={1*2} | F204: =+IF(F202<=0,0,F202*F203) -> 0.00
A206: 7223+7224+7226+7227 | B206: Costos y gastos operaciones de regalías, servicios técnicos, administrativos y de consultoría con partes relacionadas declarados | E206: {4} | F206: 0.00
A207: 7225+7228 | B207: Costos y gastos de operaciones de regalías, servicios técnicos, administrativos y de consultoría con partes relacionadas declarados como no deducibles | E207: {5} | F207: 0.00
A208: - | B208: Costos y gastos declarados de costos y gastos de operaciones de regalías, servicios técnicos, administrativos y de consultoría con partes relacionadas como deducibles | E208: {6}={4-5} | F208: =+F206-F207 -> 0.00
A210: - | B210: Diferencia en el valor máximo de deducibilidad de costos y gastos de operaciones de regalías, servicios técnicos, administrativos y de consultoría con partes relacionadas (v) | E210: {7}={6-3} | F210: =IF((F208-F204)<=0,0,(F208-F204)) -> 0.00
A213: NOTAS :
A214: a) Corresponde al número del casillero de la Declaración del impuesto a la renta y presentación de estados financieros, vigente para el ejercicio fiscal auditado.
A215: b) Según lo establecido en el numeral 10 del artículo 28 del Reglamento para la aplicación de la Ley de Régimen Tributario Interno.
A216: c) Diferencia del gasto de gestión declarado & el valor máximo de deducibilidad de gastos de gestión
A217: d) Aplica cuando se refiera a un ingreso. Considerar el casillero 834 únicamente en los casos en que se haya declarado un valor con signo negativo, considerar el casillero 835 únicamente en los casos en que se haya declarado un valor con signo positivo. Si cumplen los parámetros indicados se deberá consignar en el cuadro los valores en absoluto.
A218: e) Diferencia del gasto de viaje declarado & el valor máximo de deducibilidad de gastos de viaje
A219: f) Diferencia del gastos indirectos asignados desde el exterior por partes relacionadas declarado & el valor máximo de deducibilidad de gastos indirectos asignados desde el exterior por partes relacionadas
A220: g) Según lo establecido en el numeral 11 del artículo 28 del Reglamento para la aplicación de la Ley de Régimen Tributario Interno.
A221: h) Diferencia del gasto promoción y publicidad declarado & el valor máximo de deducibilidad de gastos de promoción y publicidad
A222: i) Según lo establecido en el numeral (II) del artículo 30 del Reglamento para la aplicación de la Ley de Régimen Tributario Interno, se entenderá como endeudamiento externo, el total de deudas contraídas con personas naturales y sociedades relacionadas del exterior.
A223: j) Según lo establecido en el numeral (II) del artículo 30 del Reglamento para la aplicación de la Ley de Régimen Tributario Interno, serán deducibles los intereses generados por sus créditos del exterior, siempre que la relación entre el total del endeudamiento externo y su patrimonio no exceda del 300%. Para sucursales extranjeras, consorcios de empresas petroleras, sociedades de hecho y demás sociedades que carecen de personalidad jurídica y fideicomisos mercantiles se deberá hacer referencia al valor sobre el cual se establece la relación con el total del endeudamiento externo, de acuerdo con lo que señala la normativa tributaria señalada para cada caso.
A224: k) Según lo establecido en el numeral (II) del artículo 30 del Reglamento para la aplicación de la Ley de Régimen Tributario Interno, en caso de que las relaciones de deuda, excedan el límite establecido al momento del registro del crédito en el Banco Central, no será deducible la porción del gasto generado sobre el exceso de la relación correspondiente, sin perjuicio de la retención en la fuente de Impuesto a la Renta sobre el total de los intereses.
A225: l) Diferencia del astos de intereses por créditos del exterior con partes relacionadas declarado & en el valor máximo de deducibilidad de gastos de intereses por créditos del exterior con partes relacionadas
A226: m) Según lo establecido en el numeral 17 del artículo 28 del Reglamento para la aplicación de la Ley de Régimen Tributario Interno. Para el caso de las sociedades que se encuentren en el ciclo preoperativo del negocio, este porcentaje corresponderá al 2% del total de los activos.
A227: n) Diferencia del gastos de instalación, organización y similares declarado & el valor máximo de deducibilidad de gastos de instalación, organización y similares
A228: o) Según lo establecido en el numeral 3 del artículo 28 del Reglamento para la aplicación de la Ley de Régimen Tributario Interno.
A229: p) Corresponde al saldo final del deterioro acumulado de créditos incobrables del período fisccal anterior al auditado.
A230: q) Diferencia provisiones para créditos incobrables declarado & gasto no deducible en el valor máximo de deducibilidad de gastos por pérdidas netas por deterioro en el valor de activos financieros (provisiones para créditos incobrables)
A231: t) Según lo establecido en el numeral 16 del artículo 28 del Reglamento a la Ley de Régimen Tributario Interno. En el caso de los contribuyentes que se encuentren en el ciclo preoperativo del negocio, éste porcentaje corresponderá al 10% del total de los activos y cuando en el caso de contribuyentes cuya única actividad sea prestar servicios técnicos a partes independientes, si el indicador de margen operativo es igual o superior al 7,5% no habrá límite de deducibilidad.
A232: u) Según lo establecido en el antepenúltimo inciso del del numeral 16 del artículo 28 del Reglamento a la Ley de Régimen Tributario Interno, si el activo por el cual se están pagando regalías a partes relacionadas hubiere pertenecido a la sociedad residente o establecimiento permanente en el Ecuador en los últimos 20 años no será deducible el gasto en su totalidad
A233: v) Según lo establecido en el numeral 16 del artículo 28 del Reglamento a la Ley de Régimen Tributario Interno
A234: c, e, f, h, l, n, q, r, s,v. En caso de existir diferencias se debe revelar la explicación de las mismas, tanto en las columnas de observaciones del presente anexo como en la parte de Recomendaciones sobre Aspectos Tributarios.
A236: CERTIFICACIÓN: Al cargar el presente Anexo en la plataforma del 'SRI en Línea' previa autenticación e ingreso con usuario y contraseña, el representante legal del sujeto pasivo y su contador certifican la veracidad del contenido de este anexo del Informe de Cumplimiento Tributario.

Sheet CONCILIACIÓN INGRESOS A5
A1: INFORME DE CUMPLIMIENTO TRIBUTARIO | G1: Índice
A3: RAZÓN SOCIAL: | C3: COMPAÑÍA XYZ S.A.
A4: RUC: | C4: XXXXXXXXXXXXX
A5: EJERCICIO FISCAL AUDITADO: | C5: 2023
A7: ANEXO No.
A8: CONCILIACIÓN TRIBUTARIA - DIFERENCIAS PERMANENTES
A9: INGRESOS EXENTOS / INGRESOS NO OBJETO DE IMPUESTO A LA RENTA / INGRESOS SUJETOS A IMPUESTO A LA RENTA ÚNICO / INGRESOS SUJETOS AL RIMPE
A12: Detalle de Ingresos exentos / no objeto de impuesto a la renta / sujetos a impuesto a la renta único / sujeto al Rimpe | H12: Surgencia en el anexo COPCI
A14: Identificación del ingreso | B14: No. Casillero de la declaración de impuesto a la renta | C14: Código de cuenta contable | D14: Nombre de la cuenta contable | E14: Descripción del tipo de ingreso exento / no objeto de impuesto a la renta / sujeto a impuesto a la renta único / sujeto al RIMPE | F14: Normativa de respaldo del ingreso exento / no objeto de impuesto a la renta / sujeto a impuesto a la renta único / sujeto al RIMPE | G14: Valor total en libros contables | H14: Valor verificado por el auditor | I14: Diferencia entre lo declarado por la sociedad y lo verificado por el auditor | J14: Explicación de la metodología utilizada por el auditor y los cálculos que sustenten la verificación de los ingresos declarados como exentos / no objeto | K14: Justificación de la diferencia
A15: (a) | B15: (b) | C15: (c) | E15: (d) | F15: (e) | G15: (f) | H15: (g) | I15: (hf-g)
A16: INGRESOS EXENTOS | G16: 0.00
G17: 0.00
G18: 0.00
G19: 0.00
G20: 0.00
G21: 0.00
G22: 0.00
G23: 0.00
G24: 0.00
G25: 0.00
A26: Total según libros contables {1} | G26: =SUM(G16:G25) -> 0.00
A29: Conciliación de los ingresos exentos / no objeto de impuesto a la renta / sujetos a impuesto a la renta único / sujetos al RIMPE declarados vs. Libros
A31: Descripción | F31: No. Casillero de la declaración de impuesto a la renta | G31: Total
A32: Dividendos exentos y efectos por método de participación | F32: 804 | G32: 0.00
A33: Otras rentas exentas e ingresos no objeto de impuesto a la renta | F33: 805 | G33: 0.00
A34: Ingresos sujetos a impuesto a la renta único | F34: 812 | G34: 0.00
A35: Ingresos sujetos al Impuesto a la Renta del RIMPE | F35: 1112 | G35: 0.00
A36: Total ingresos exentos / no objeto de impuesto a la renta / sujetos a impuesto a la renta único declarados {2} | G36: =SUM(G32:G35) -> 0.00
A37: Diferencia (g) {3 = 1 - 2} | G37: =G26-G36 -> 0.00
A43: EXPLICACIÓN DE DIFERENCIAS (g)
A51: NOTAS :
A52: a) Corresponde a la descripción general del ingreso, por ejemplo: Ingreso exento, Ingreso no objeto de impuesto a la renta, Ingreso sujeto a impuesto a la renta único o ingreso sujeto al Régimen Microempresarial.
A53: b) Corresponde al número del casillero de la Declaración del impuesto a la renta y presentación de estados financieros para sociedades y establecimientos permanentes, vigente para el ejercicio fiscal auditado; en donde se declararon los ingresos exentos, no objeto de impuesto a la renta, sujetos a impuesto a la renta único o sujetos al Régimen Microempresarial.
A54: c) Los códigos de cuentas deberán ser ingresados al máximo detalle posible, de tal forma que los componentes de cada casillero se puedan identificar claramente.
A55: d) Se deberá especificar el tipo de ingreso exento, no objeto de impuesto a la renta, sujeto a impuesto a la renta único o sujeto al Régimen Microempresarial que se haya obtenido, por ejemplo: Ingresos generados por la enajenación ocasional de inmuebles.
A56: e) Se debe detallar la normativa que respalda al ingreso para considerarlo como exento, no objeto de impuesto a la renta, sujeto a impuesto a la renta único o sujeto al Régimen Microempresarial, por ejemplo: Numeral 14 del artículo 9 de la Ley de Régimen Tributario Interno.
A57: f) Corresponde a la sumatoria de las operaciones efectuadas en el ejercicio fiscal, en valor monetario de conformidad con el código contable indicado.
A58: g) En caso de existir diferencias se debe revelar la explicación de las mismas en el cuadro Explicación de Diferencias de este Anexo y deberá estar reflejado en la parte de 'Recomendaciones sobre Aspectos Tributarios'.
A61: CERTIFICACIÓN: Al cargar el presente Anexo en la plataforma del 'SRI en Línea' previa autenticación e ingreso con usuario y contraseña, el representante legal del sujeto pasivo y su contador certifican la veracidad del contenido de este anexo del Informe de Cumplimiento Tributario.

Sheet CONCILIACIÓN COSTOS Y GASTOS A6
A1: INFORME DE CUMPLIMIENTO TRIBUTARIO | I1: Índice
A3: RAZÓN SOCIAL: | C3: COMPAÑÍA XYZ S.A.
A4: RUC: | C4: XXXXXXXXXXXXX
A5: EJERCICIO FISCAL AUDITADO: | C5: 2023
A8: CONCILIACIÓN TRIBUTARIA - DIFERENCIAS PERMANENTES
A9: GASTOS NO DEDUCIBLES LOCALES Y DEL EXTERIOR / GASTOS INCURRIDOS PARA GENERAR INGRESOS EXENTOS /
A10: GASTOS ATRIBUIDOS A INGRESOS NO OBJETO DE IMPUESTO A LA RENTA / GASTOS INCURRIDOS PARA GENERAR INGRESOS SUJETOS A IMPUESTO A LA RENTA UNICO
A11: COSTOS Y GASTOS INCURRIDOS PARA GENERAR INGRESOS SUJETOS AL IMPUESTO A LA RENTA DEL RIMPE
A13: A. Detalle de gastos no deducibles locales y del exterior / incurridos para generar ingresos exentos / atribuidos a ingresos no objetos de impuesto a la renta / incurridos para generar ingresos sujetos a impuesto a la renta único / costos y gastos incurridos para generar ingresos sujetos al Impuesto a la Renta del RIMPE
A15: Identificación del gasto | B15: No. Casillero de la declaración de impuesto a la renta | C15: Código de cuenta contable | D15: Nombre de la cuenta contable | E15: Descripción del tipo de gasto no deducible local y del exterior / incurridos para generar ingresos exentos / atribuidos a ingresos no objetos de impuesto a la renta / incurridos para generar ingresos sujetos a impuesto a la renta único / costos y gastos incurridos para generar ingresos sujetos al Impuesto a la Renta del RIMPE | G15: Normativa aplicable para considerar al gasto no deducible local y del exterior / incurridos para generar ingresos exentos / atribuidos a ingresos no objetos de impuesto a la renta / incurridos para generar ingresos sujetos a impuesto a la renta único / costos y gastos incurridos para generar ingresos sujetos al Impuesto a la Renta del RIMPE | I15: Descripción del tipo de ingreso exento / no objeto de impuesto a la renta / sujeto a impuesto a la renta único / sujeto al RIMPE con el que se relaciona el costo o gasto | K15: Valor total en libros contables | L15: Valor verificado por el auditor | M15: Diferencia entre lo declarado por la sociedad y lo verificado por el auditor | N15: La diferencia fue aceptada por el sujeto pasivo (SI/NO) | O15: Jsutificación de la NO aceptación
A16: (a) | B16: (b) | C16: (c) | E16: (d) | G16: (e) | I16: (f) | K16: (g)
K17: 0.00
K18: 0.00
K19: 0.00
K20: 0.00
K21: 0.00
A22: Total según libros contables {1} | K22: =SUM(K17:K21) -> 0.00
A24: B. Aplicación del ajuste cuando el contribuyente no ha diferenciado en su contabilidad los costos y gastos directamente atribuibles a la generación de ingresos exentos
A26: Descripción | F26: No. Casillero de la declaración de impuesto a la renta (en caso de aplicar) | G26: Total | H26: Referencia | I26: Observaciones
A27: Ingresos exentos: | H27: -
A28: XXXXXXXXX | G28: 0.00 | H28: -
A29: XXXXXXXXX | G29: 0.00 | H29: -
A30: XXXXXXXXX | G30: 0.00 | H30: -
A31: XXXXXXXXX | G31: 0.00 | H31: -
A32: XXXXXXXXX | G32: 0.00 | H32: -
A33: Total ingresos exentos para la aplicación del ajuste | G33: =SUM(G28:G32) -> 0.00 | H33: {2}
A34: Total Ingresos declarados en el impuesto a la renta | F34: 6999 | G34: 0.00 | H34: -
A35: (±) Ajustes al valor de ingresos (conciliación tributaria): | H35: -
A36: XXXXXXXXX | G36: 0.00 | H36: -
A37: XXXXXXXXX | G37: 0.00 | H37: -
A38: XXXXXXXXX | G38: 0.00 | H38: -
A39: XXXXXXXXX | G39: 0.00 | H39: -
A40: XXXXXXXXX | G40: 0.00 | H40: -
A41: Total ingresos para la aplicación del ajuste | G41: =SUM(G34:G40) -> 0.00 | H41: {3}
A42: Porcentaje que representan los ingresos exentos sobre el total de ingresos | G42: =IF(G33=0,"0,00%",G33/G41) -> 0,00% | H42: {4}={2 / 3}
A43: Total Costos y Gastos declarados en el impuesto a la renta | F43: 7999 | G43: 0.00 | H43: -
A44: (±) Ajustes al valor de costos y gastos (conciliación tributaria): | H44: -
A45: XXXXXXXXX | G45: 0.00 | H45: -
A46: XXXXXXXXX | G46: 0.00 | H46: -
A47: XXXXXXXXX | G47: 0.00 | H47: -
A48: XXXXXXXXX | G48: 0.00 | H48: -
A49: XXXXXXXXX | G49: 0.00 | H49: -
A50: Total costos y gastos para la aplicación del ajuste | G50: =SUM(G43:G49) -> 0.00 | H50: {5}
A51: Valor del ajuste que corresponde a costos y gastos incurridos para generar ingresos exentos | G51: =+G42*G50 -> 0.00 | H51: {6}={4 * 5}
A55: C. Cálculo de la participación a trabajadores atribuible a ingresos exentos y no objeto del impuesto a la renta
A57: Descripción | G57: No. Casillero de la declaración de impuesto a la renta | H57: Total | I57: Referencia | J57: Valor verificado por el auditor | K57: Diferencia entre lo declarado por la sociedad y lo verificado por el auditor | L57: La diferencia fue aceptada por el sujeto pasivo (SI/NO) | M57: Jsutificación de la NO aceptación
A58: Dividendos exentos y efectos por método de participación | G58: 804 | H58: 0.00 | I58: {7}
A59: Otras rentas exentas e ingresos no objeto de impuesto a la renta | G59: 805 | H59: 0.00 | I59: {8}
A60: Gastos incurridos para generar ingresos exentos y gastos atribuidos a ingresos no objeto de impuesto a la renta | G60: 808 | H60: 0.00 | I60: {9}
A61: Participación a trabajadores atribuibles a ingresos exentos y no objeto del impuesto a la renta | H61: =IF(((H59-H60)>=0),(H58*15%)+((H59-H60)*15%),(H58*15%)) -> 0.00 | I61: {10}={7*15%}+{{8-9}*15%}
A63: D. Conciliación de los gastos no deducibles locales y del exterior / incurridos para generar ingresos exentos / atribuidos a ingresos no objetos de impuesto a la renta / incurridos para generar ingresos sujetos a impuesto a la renta único declarados / costos y gastos incurridos para generar ingresos sujetos al Impuesto a la Renta del RIMPE vs. Libros
A65: Descripción | G65: No. Casillero de la declaración de impuesto a la renta | H65: Total | I65: Referencia
A66: Gastos no deducibles locales | G66: 806 | H66: 0.00 | I66: {11}
A67: Gastos no deducibles del exterior | G67: 807 | H67: 0.00 | I67: {12}
A68: Gastos incurridos para generar ingresos exentos y gastos atribuidos a ingresos no objeto de impuesto a la renta | G68: 808 | H68: 0.00 | I68: {13}
A69: Participación a trabajadores atribuibles a ingresos exentos y no objeto del impuesto a la renta | G69: 809 | H69: 0.00 | I69: {14}
A70: Costos y gastos deducibles incurridos para generar ingresos sujetos a impuesto a la renta único | G70: 813 | H70: 0.00 | I70: {15}
A71: Costos y gastos incurridos para generar ingresos sujetos al Impuesto a la Renta del RIMPE | G71: 1113 | H71: 0.00 | I71: {16}
A72: Total gastos no deducibles locales y del exterior / incurridos para generar ingresos exentos / atribuidos a ingresos no objetos de impuesto a la renta / incurridos para generar ingresos sujetos a impuesto a la renta único declarados | H72: =SUM(H66:H71) -> 0.00 | I72: {17}={11+12+13+14+15+16}
A73: Diferencias (h) | H73: =+K22+G51+H61-H72 -> 0.00 | I73: {18}={1+6+10-17}
A76: E. Detalle de Gastos no Deducibles con signo negativo que forman parte del casillero 806/807
A78: No. Casillero de la declaración de impuesto a la renta | B78: No. Cuenta contable | C78: Descripción | D78: Valor | E78: Motivo considerado para el reverso de Gasto No Deducible (Breve Descripción) | F78: Normativa Financiera que respalda el ajuste (especificar artículo o base legal) | G78: Normativa Tributaria que respalda el reverso (incluir base legal considerada) | H78: Observaciones | I78: Valor verificado por el auditor | J78: Diferencia entre lo declarado por la sociedad y lo verificado por el auditor | K78: La diferencia fue aceptada por el sujeto pasivo (SI/NO) | L78: Justificación de la NO aceptación
A84: EXPLICACIÓN DE DIFERENCIAS (h)
A91: NOTAS :
A92: a) Corresponde a la descripción general del gasto, por ejemplo: Gasto no deducible local, gasto no deducible del exterior, gasto incurrido para generar ingresos exentos, gasto atribuido a ingresos no objetos de impuesto a la renta, gasto incurrido para generar ingresos sujetos a impuesto a la renta único o Costos y gastos incurridos para generar ingresos sujetos al Impuesto a la Renta del Régimen Impositivo de Microempresas.
A93: b) Corresponde al número del casillero del formulario 101, Declaración del impuesto a la renta y presentación de estados financieros para sociedades y establecimientos permanentes, vigente para el ejercicio fiscal auditado; en donde se declararon los gastos no deducibles locales y del exterior, incurridos para generar ingresos exentos, atribuidos a ingresos no objetos de impuesto a la renta, incurridos para generar ingresos sujetos a impuesto a la renta único o Costos y gastos incurridos para generar ingresos sujetos al Impuesto a la Renta del Régimen Impositivo de Microempresas.
A94: c) Los códigos de cuentas deberán ser ingresados al máximo detalle posible, de tal forma que los componentes de cada casillero se puedan identificar claramente.
A95: d) Se deberá especificar el tipo de gasto no deducible local, gasto no deducible y del exterior, incurrido para generar ingresos exentos, atribuido a ingresos no objetos de impuesto a la renta, incurrido para generar ingresos sujetos a impuesto a la renta único que se haya efectuado o Costos y gastos incurridos para generar ingresos sujetos al Impuesto a la Renta del Régimen Impositivo de Microempresas, por ejemplo: Gastos no deducibles por mantenimiento y reparaciones sustentados en comprobantes de venta que no cumplen con los requisitos establecidos en el reglamento correspondiente.
A96: e) Se debe detallar la normativa aplicable para considerar al gasto no deducible local y del exterior, incurridos para generar ingresos exentos, atribuidos a ingresos no objetos de impuesto a la renta, incurridos para generar ingresos sujetos a impuesto a la renta único o Costos y gastos incurridos para generar ingresos sujetos al Impuesto a la Renta del Régimen Impositivo de Microempresas, por ejemplo: Numeral 1 del artículo 10 de la Ley de Régimen Tributario Interno.
A97: f) Se deberá especificar el tipo de ingreso exento, no objeto de impuesto a la renta, sujeto a impuesto a la renta único o sujeto al Régimen de Microempresas que se haya obtenido con el que se relaciona el costo o gasto, por ejemplo: Ingresos generados por la enajenación ocasional de inmuebles.
A98: g) Corresponde a la sumatoria de las operaciones efectuadas en el ejercicio fiscal, en valor monetario de conformidad con el código contable indicado.
A99: h) En caso de existir diferencias se debe revelar la explicación de las mismas en el cuadro Explicación de Diferencias de este Anexo y deberá estar reflejado en la parte de 'Recomendaciones sobre Aspectos Tributarios'.
A103: CERTIFICACIÓN: Al cargar el presente Anexo en la plataforma del 'SRI en Línea' previa autenticación e ingreso con usuario y contraseña, el representante legal del sujeto pasivo y su contador certifican la veracidad del contenido de este anexo del Informe de Cumplimiento Tributario.

Sheet BENEFICIOS TRIBUTARIOS A7
A2: PONER SI EL AUDITOR VERIFICÓ LAS CONDICIONES PARA HACER USO DE LA DEDUCCIÓN ESPECIAL
A8: INFORME DE CUMPLIMIENTO TRIBUTARIO | G8: Índice
A10: RAZÓN SOCIAL: | C10: COMPAÑÍA XYZ S.A.
A11: RUC: | C11: XXXXXXXXXXXXX
A12: EJERCICIO FISCAL AUDITADO: | C12: 2023
A15: CONCILIACIÓN TRIBUTARIA - DIFERENCIAS PERMANENTES
A16: DEDUCCIONES ADICIONALES
A19: A) DETALLE Y CONCILIACIÓN DE DEDUCCIONES ADICIONALES UTILIZADAS PARA LIQUIDACIÓN DE IMPUESTO A LA RENTA DEL PERÍODO FISCAL
A21: Código de cuenta contable | B21: Nombre de la cuenta contable | C21: Descripción de la deducción | D21: Normativa aplicable para considerar la deducción | E21: Valor en libros contables | F21: % de deducción adicional a considerar en base a la normativa aplicable | G21: Valor de la deducción a considerar en base a la normativa aplicable | H21: Valor de la deducción a considerar en base a la normativa aplicable establecido por auditoría externa | I21: Valor de la diferencia establecida entre libros contable y auditoría externa | J21: Justificación de la diferencia
A22: (a) | C22: (b) | D22: (c) | E22: (d) | F22: (e) | G22: (f) | H22: (g) | I22: (h=f-g)
E23: 0.00 | F23: 0.00 % | G23: =+E23*F23 -> 0.00
E24: 0.00 | F24: 0.00 % | G24: 0.00
E25: 0.00 | F25: 0.00 % | G25: 0.00
E26: 0.00 | F26: 0.00 % | G26: 0.00
E27: 0.00 | F27: 0.00 % | G27: 0.00
E28: 0.00 | F28: 0.00 % | G28: 0.00
E29: 0.00 | F29: 0.00 % | G29: 0.00
A30: Total según el contribuyente | E30: =SUM(E23:E29) -> 0.00 | G30: =SUM(G23:G29) -> 0.00
A31: Total deducciones adicionales registradas el casillero 810 de la declaración de Impuesto a la Renta | G31: 0.00
A32: Diferencia (g) | G32: =-G30+G31 -> 0.00
A35: B) BENEFICIOS TRIBUTARIOS POR CONTRATOS DE INVERSIÓN UTILIZADOS PARA EL CÁLCULO DE IMPUESTO A LA RENTA DEL PERÍODO FISCAL
A37: No. Resolución con el que se aprueba el contrato de inversión y/o adenda | B37: Fecha del contrato de inversión | C37: El contrato de inversión está vigente? | D37: Descripción de los incentivos tributarios que constan en el contrato | F37: Norma que los contiene | G37: Impuesto al que aplica | H37: El incentivo fue utilizado durante el ejercicio fiscal | I37: Monto utilizado el incentivo utilizado en la declaración de impuesto a la renta | J37: Tarifa de impuesto a la renta utilizada
A45: C) BENEFICIOS TRIBUTARIOS EXONERACION Y/O DISMINUCIÓN DE TARIFA DE IMPUESTO A LA RENTA
A47: Concepto | D47: No. de la Resolución (si aplica) | E47: Período en el que se inició la inversión | F47: Norma que los contiene | G47: El incentivo fue utilizado durante el ejercicio fiscal | H47: Monto utilizado el incentivo utilizado en la declaración de impuesto a la renta | I47: Tarifa de impuesto a la renta utilizada
A48: Usuarios u operadores de Zonas Francas
A49: Administradores, usuarios u operadores de Zonas Francas
A50: Reducción de la tarifa del impuesto a la renta para el impulso al deporte, la cultura y al desarrollo económico responsable y sustentable de la ciencia, tecnología e innovación, y el apoyo a la atención de la discapacidad
A51: Exportadoraes habituales
A58: EXPLICACIÓN DE DIFERENCIAS (g)
A66: NOTAS :
A67: a) Los códigos de cuentas deberán ser ingresados al máximo detalle posible, de tal forma que los componentes del casillero se puedan identificar claramente.
A68: b) Se deberá especificar el tipo de deducción adicional que se haya efectuado, por ejemplo: Deducciones que correspondan a remuneraciones y beneficios sociales sobre los que se aporte al Instituto Ecuatoriano de Seguridad Social, por incremento neto de empleos.
A69: c) Se debe detallar la normativa aplicable para considerar la deducción adicional, por ejemplo: Inciso cuarto, numeral 9 del artículo 10 de la Ley de Régimen Tributario Interno.
A70: d) Corresponde a la sumatoria de las operaciones efectuadas en el ejercicio fiscal auditado en número y en valor monetario de conformidad con el código contable indicado.
A71: e) Corresponde al porcentaje de deducción adicional a considerar en base a la normativa aplicable, por ejemplo para el incremento neto de empleos el porcentaje adicional a deducirse corresponde al 100%.
A72: f) Corresponde al valor en libros por el % de deducción adicional.
A73: g) En caso de existir diferencias se debe revelar la explicación de las mismas en el cuadro Explicación de Diferencias de este Anexo y deberá estar reflejado en la parte de 'Recomendaciones sobre Aspectos Tributarios'.
A77: CERTIFICACIÓN: Al cargar el presente Anexo en la plataforma del 'SRI en Línea' previa autenticación e ingreso con usuario y contraseña, el representante legal del sujeto pasivo y su contador certifican la veracidad del contenido de este anexo del Informe de Cumplimiento Tributario.

Sheet CRÉDITO TRIBUTARIO A8
A1: INFORME DE CUMPLIMIENTO TRIBUTARIO | G1: Índice
A3: RAZÓN SOCIAL: | C3: COMPAÑÍA XYZ S.A.
A4: RUC: | C4: XXXXXXXXXXXXX
A5: EJERCICIO FISCAL AUDITADO: | C5: 2023
A7: ANEXO No. 8
A8: DETALLE DEL USO DEL CRÉDITO TRIBUTARIO POR IMPUESTO A LA RENTA Y POR IMPUESTO A LA SALIDA DE DIVISAS (ISD)
A11: 1. Detalle de uso del crédito tributario por Impuesto a la Renta
A13: Ejercicio Fiscal en el cual se generó el Crédito Tributario (a) | B13: Nombre cuenta contable | C13: No. Cuenta contable | D13: Valor del Crédito Tributario generado (b) | E13: Valor del Crédito Tributario devuelto por el SRI (pago indebido, pago en exceso, etc.) (en USD) (c) | H13: Valor total del Crédito Tributario que ha sido devuelto (en USD) | I13: No. de Resolución de devolución | J13: Monto aceptado en en Resolución | K13: Monto rechazado en en Resolución | L13: Se registró el monto rechazado como costo y gasto deducible (SI/NO) | M13: Normativa aplicada | N13: Valor del Crédito Tributario que se lo utiliza directamente en su declaración de Impuesto a la Renta (en USD) (d) | Q13: Valor total del Crédito Tributario que se ha utilizado directamente en su declaración de impuesto a la renta (en USD) | R13: Valor que no puede ser utilizado como crédito tributario (en USD) (e) | S13: Saldo de Crédito Tributario pendiente de utilizar (en USD) | T13: Observaciones (k)
D14: {1} | E14: Año 2021 {2} | F14: Año 2022 {3} | G14: Año 2023 {4} | H14: {5} = { 2 + 3 + 4} | N14: Año 2021 {6} | O14: Año 2022 {7} | P14: Año 2023 {8} | Q14: {9} = { 6 + 7 + 8} | R14: {10} | S14: {11} = { 1 - 5 - 9 - 10}
A15: 2021 | H15: =SUM(E15:G15) -> 0 | Q15: =SUM(N15:P15) -> 0 | S15: =+D15-H15-Q15-R15 -> 0
A16: 2022 | H16: =SUM(E16:G16) -> 0 | Q16: =SUM(N16:P16) -> 0 | S16: =+D16-H16-Q16 -> 0
A17: 2023 | H17: =SUM(E17:G17) -> 0 | Q17: =SUM(N17:P17) -> 0 | S17: =+D17-H17-Q17 -> 0
H18: =SUM(E18:G18) -> 0 | Q18: =SUM(N18:P18) -> 0 | S18: =+D18-H18-Q18 -> 0
A19: TOTALES | D19: =SUM(D15:D18) -> 0 | E19: =SUM(E15:E18) -> 0 | F19: 0 | G19: 0 | H19: 0 | N19: =SUM(N15:N18) -> 0 | O19: 0 | P19: 0 | Q19: 0 | R19: 0 | S19: 0
A23: 2. Detalle de uso del ISD pagado y del crédito tributario por Impuesto a la Salida de Divisas (ISD)
A26: Ejercicio Fiscal en el cual se realizaron pagos de ISD susceptibles de ser considerados como costo o gasto, crédito tributario o sujeto a devolución (f) | B26: Valor total del ISD pagado en el ejercicio fiscal, susceptible de ser considerado como costo o gasto, crédito tributario o sujeto a devolución (en USD) (g) | C26: Valor del ISD que se utiliza como costo o gasto en su declaración de Impuesto a la Renta (en USD) | H26: Subtotal de ISD pagado, después de utilizarse como costo o gasto en su declaración de Impuesto a la Renta (en USD) | I26: Valor del ISD que se utiliza como Crédito Tributario directamente en su declaración de Impuesto a la Renta (en USD) (h) | N26: Subtotal de ISD pagado, después de utilizarse como costo o gasto y como crédito tributario en su declaración de Impuesto a la Renta (en USD) | O26: Valor del ISD devuelto por el SRI (en USD) (i) | T26: Valor del ISD pagado no sujeto a devolución, que no puede usarse como crédito tributario y que no puede ser cargado al costo o gasto (j) | U26: Saldo de Crédito Tributario pendiente de utilizar | V26: Observaciones (k)
B27: {1} | C27: Año 2019 {2} | D27: Año 2020 {3} | E27: Año 2021 {4} | F27: Año 2022 {5} | G27: Año 2023 {6} | H27: {7} = { 1 - 2 - 3 - 4 - 5 - 6} | I27: Año 2019 {8} | J27: Año 2020 {9} | K27: Año 2021 {10} | L27: Año 2022 {11} | M27: Año 2023 {12} | N27: {13} = { 7 - 8 - 9 - 10 - 11 - 12} | O27: Año 2019 {14} | P27: Año 2020 {15} | Q27: Año 2021 {16} | R27: Año 2022 {17} | S27: Año 2023 {18} | T27: {19} | U27: {20} = { 13 - 14 - 15 - 16 - 17 - 18 - 19 }
A28: 2019 | H28: =+B28-C28-D28-E28-F28-G28 -> 0 | N28: =+H28-I28-J28-K28-L28-M28 -> 0 | U28: =+N28-O28-P28-Q28-R28-S28-T28 -> 0
A29: 2020 | H29: =+B29-C29-D29-E29-F29-G29 -> 0 | N29: =+H29-I29-J29-K29-L29-M29 -> 0 | U29: =+N29-O29-P29-Q29-R29-S29-T29 -> 0
A30: 2021 | H30: =+B30-C30-D30-E30-F30-G30 -> 0 | N30: =+H30-I30-J30-K30-L30-M30 -> 0 | U30: =+N30-O30-P30-Q30-R30-S30-T30 -> 0
A31: 2022 | H31: =+B31-C31-D31-E31-F31-G31 -> 0 | N31: =+H31-I31-J31-K31-L31-M31 -> 0 | U31: =+N31-O31-P31-Q31-R31-S31-T31 -> 0
A32: 2023 | H32: =+B32-C32-D32-E32-F32-G32 -> 0 | N32: =+H32-I32-J32-K32-L32-M32 -> 0 | U32: =+N32-O32-P32-Q32-R32-S32-T32 -> 0
A33: TOTALES | B33: =SUM(B28:B32) -> 0 | C33: 0 | D33: 0 | E33: 0 | F33: 0 | G33: 0 | H33: 0 | I33: 0 | J33: 0 | K33: 0 | L33: 0 | M33: 0 | N33: 0 | O33: 0 | P33: 0 | Q33: 0 | R33: 0 | S33: 0 | T33: 0 | U33: 0
A36: NOTAS :
A37: a) Corresponde al ejercicio fiscal en el cual se registró el crédito tributario en el formulario de la declaración de Impuesto a la Renta para sociedades..
A38: b) Corresponde al valor del crédito tributario generado en cada ejercicio fiscal de los 3 que se informan en este anexo, no al crédito tributario acumulado en la declaración de Impuesto a la Renta de cada ejercicio fiscal. Para el valor registrado en este campo para cada uno de los 3 ejercicios fiscales, se deberá identificar en los siguientes campos (c) y (d), la forma en que ha sido utilizado ese crédito tributario generado, ya sea mediante devolución o ya sea mediante la utilización directa en la declaración del Impuesto a la Renta, de acuerdo a lo establecido en el Art. 47 de la Ley de Régimen Tributario Interno. Por ejemplo: si en el ejercicio fiscal 2020 se generó un crédito tributario por USD 10.000, pero el crédito tributario acumulado y registrado en el casillero 870 en ese ejercicio fiscal es de USD 15.000, en este campo (b) "Valor del Crédito Tributario generado", se registrará el valor de USD 10.000 que corresponde al crédito tributario que se generó en el ejercicio fiscal 2019. De la misma forma se procederá para los créditos tributarios generados en los ejercicios fiscales 2021 y 2022.
A39: c) Corresponde al valor efectivamente devuelto por el SRI, sin incluir intereses, registrándolo en el año en el cual se recibió la devolución de lo solicitado.
A40: d) Corresponde al valor del crédito tributario registrado en la columna (b) "Valor del Crédito Tributario generado" que ha sido utilizado directamente para cubrir su impuesto a la renta causado en la declaración de Impuesto a la Renta en cada uno de los 3 años que lo permite la norma tributaria, de acuerdo a lo establecido en el Art. 47 de la Ley de Régimen Tributario Interno. Por ejemplo: si en la columna (b) "Valor del Crédito Tributario generado" se registró para el ejercicio fiscal 2019 un crédito tributario generado de USD 10.000, de los cuales no ha pedido devolución de ese crédito tributario, pero en la declaración de Impuesto a la Renta del ejercicio fiscal 2021 se utilizó para cubrir su impuesto a la renta causado un valor de USD 6.000, ese valor se registrará en la columna (d) para el ejercicio fiscal 2021. Si, adicionalmente en el ejercicio fiscal 2022 se utilizó de ese crédito tributario generado en el ejercicio fiscal 2019 para cubrir su impuesto a la renta causado el valor de USD 4.000, ese valor se registrará en la columna (d) para el ejercicio fiscal 2022. Para el ejemplo propuesto, para ese crédito tributario generado en el ejercicio fiscal 2019 ya no quedará saldo de crédito tributario pendiente de ser utilizado en vista de que ya se utilizó en su totalidad en las declaraciones de Impuesto a la Renta de los ejercicios fiscales 2021 y 2022.
A41: e) Corresponde al valor que de acuerdo a la normativa legal no es reconocido por la Administración Tributaria como crédito tributario.
A42: f) Corresponde al año en el cual se realizaron los pagos del ISD que son susceptibles de ser considerados como costo o gasto, crédito tributario o sujeto a devolución.
A43: g) Corresponde al valor de ISD pagado que es susceptibles de ser considerados como costo o gasto, crédito tributario o sujeto a devolución, consolidado en forma anual.
A44: h) Corresponde a la sumatoria de los valores registrado en los casilleros 862: "Generado en el ejercicio fiscal declarado" y 863: "Generado en ejercicios fiscales anteriores",: del formulario para la declaración de Impuesto a la Renta para sociedades. De conformidad con el artículo 162 de la Ley de Equidad Tributaria podrá ser podrá ser utilizado como crédito tributario, que se aplicará para el pago del Impuesto a la Renta del propio contribuyente, y por cinco ejercicios fiscales, los pagos realizados por concepto de Impuesto a la Salida de Divisas en la importación de materias primas, insumos y bienes de capital con la finalidad de que sean incorporados en procesos productivos utilizados como crédito tributario, que se aplicará para el pago del Impuesto a la Renta del propio contribuyente, y por cinco ejercicios fiscales, los pagos realizados por concepto de Impuesto a la Salida de Divisas en la importación de materias primas, insumos y bienes de capital con la finalidad de que sean incorporados en procesos productivos y serán los que consten en el listado de subpartidas detalladas mediante resolución CPT CPT­03­2012 y sus reformas.
A45: i) Corresponde al valor efectivamente devuelto por el SRI, sin incluir intereses, registrándolo en el año en el cual se recibió la devolución de lo solicitado. En caso de solicitar devolución mensual del ISD, deberá consolidar los valores devueltos en forma anual.
A46: j) Corresponde al valor que de acuerdo a la normativa legal no es reconocido por la Administración Tributaria como crédito tributario, no es sujeto a devolución o no se lo puede incluir dentro del costo o gasto.
A47: k) En caso de existir observaciones, se debe revelar la explicación de las mismas, tanto en la columna de observaciones, como en la parte de Recomendaciones sobre Aspectos Tributarios.
A51: CERTIFICACIÓN: Al cargar el presente Anexo en la plataforma del 'SRI en Línea' previa autenticación e ingreso con usuario y contraseña, el representante legal del sujeto pasivo y su contador certifican la veracidad del contenido de este anexo del Informe de Cumplimiento Tributario.

Sheet COMERCIO EXTERIOR A9
A1: INFORME DE CUMPLIMIENTO TRIBUTARIO | J1: Índice
A3: RAZÓN SOCIAL: | C3: COMPAÑÍA XYZ S.A.
A4: RUC: | C4: XXXXXXXXXXXXX
A5: EJERCICIO FISCAL AUDITADO: | C5: 2023
A7: ANEXO No. 10
A8: OPERACIONES CON EL EXTERIOR
A9: (SE EXCLUYEN EXPORTACIONES E IMPORTACIONES DE BIENES)
A11: 1.- PAGOS AL EXTERIOR
A13: A. Detalle de pagos al exterior en aplicaciòn de Convenios para Evitar la Doble Imposición (CDI)
A15: No. Casillero de la declaración de I. Renta | B15: Código de cuenta contable | C15: Nombre de cuenta contable | D15: Ejercicio fiscal al que corresponde la transacción por la que se realiza el pago | E15: Datos de la persona natural / sociedad proveedor del exterior | K15: Descripción de la transacción | M15: País con el cual se mantiene el CDI | N15: Tipo de renta según CDI | O15: Artículo del CDI que aplicó | P15: País desde el cual se presta el servicio o de donde procede el intangible o la renta pasiva (ej.: intereses, regalìas, etc.) | Q15: Moneda de transacción (Dólar, Euro, etc.) | R15: Monto total de la transacción en la moneda de pago | S15: Monto total de la transacción en dólares | T15: Forma de pago (transferencia, tarjeta de crédito, compensación de cuentas) | U15: ¿El pago es considerado como gravado? (SI/NO) | V15: ¿Efectuó retención? (SI/NO) | W15: Base imponible para retención (USD) | X15: Porcentaje de impuesto aplicado | Y15: Monto de retención efectuada (USD) | Z15: El pago es considerado como gasto deducible? (SI/NO) | AA15: Observaciones (i)
E16: No. Identificación tributaria | F16: Nombres y apellidos / Razón social | G16: País de residencia fiscal | H16: Código o número identificador del Certificado de Residencia Fiscal | I16: ¿Es parte relacionada? (SI/NO) | J16: Normativa para ser considerada como parte relacionada
A17: (a) | B17: (b) | E17: (c) | N17: (d) | T17: (e)
A23: TOTAL | R23: =SUM(R18:R22) -> 0.00 | S23: =SUM(S18:S22) -> 0.00 | Y23: =SUM(Y18:Y22) -> 0.00
A26: B. Detalle de pagos al exterior sin aplicación de Convenios para Evitar la Doble Imposición (CDI)
A28: No. Casillero de la declaración de I. Renta | B28: Código de cuenta contable | C28: Nombre de cuenta contable | D28: No. Asiento contable | E28: Ejercicio fiscal al que corresponde la transacción por la que se realiza el pago | F28: Datos de la persona natural / sociedad del exterior | K28: Descripción de la transacción | M28: País desde el cual se presta el servicio o de donde procede el intangible o la renta pasiva (ej.: intereses, regalìas, etc.) | N28: Moneda de transacción (Dólar, Euro, etc.) | O28: Monto total de la transacción en la moneda de pago | P28: Monto total de la transacción en dólares | Q28: El pago es considerado como gravado? (SI/NO) | R28: ¿Por qué no es gravado? | S28: ¿Efectuó retención? (SI/NO) | T28: Normativa de soporte que aplicó para no efectuar la retención | U28: Base imponible para retención (USD) | V28: Porcentaje de retención | W28: Monto de retención efectuada (USD) | Y28: ¿Requiere certificación de auditores independientes? (SI/NO) | Z28: Identificación del auditor independiente que realiza la certificación | AA28: Razón social del auditor independiente que realiza la certificaciónn | AB28: País de residencia del auditor independiente que realiza la certificación | AC28: ¿Aplicó un Convenio para Evitar la Doble Imposición? (SI/NO) | AD28: País con el que aplicó el Convenio para Evitar la Doble Imposición | AE28: Observaciones (i)
F29: No. Identificación tributaria | G29: Nombres y apellidos / Razón social | H29: País de residencia fiscal o domicilio | I29: ¿Es parte relacionada? (SI/NO) | J29: Normativa para ser considerada como parte relacionada | X29: Forma de pago (transferencia, tarjeta de crédito, compensación de cuentas)
A30: (a) | B30: (b) | F30: (c) | X30: ( e)
A36: TOTAL | O36: =SUM(O31:O35) -> 0.00 | P36: =SUM(P31:P35) -> 0.00 | W36: =SUM(W31:W35) -> 0.00
A38: C. Detalle de pagos mediante reembolsos de gastos al exterior. Se incluyen los pagos con o sin aplicaciòn de los Convenios para Evitar la Doble Imposición (CDI)
A40: No. Casillero de la declaración de I. Renta | B40: Código de cuenta contable | C40: Nombre de cuenta contable | D40: Datos del intermediario del reembolso | I40: Datos del proveedor del exterior | N40: Descripción de la transacción | P40: País desde el cual se presta el servicio o de donde procede el intangible o la renta pasiva (ej.: intereses, regalìas, etc.) | Q40: ¿Se aplicó un CDI? (SI/NO) | T40: Moneda de transacción (Dólar, Euro, etc.) | U40: Monto total de la transacción en la moneda de pago | V40: Monto total de la transacción en dólares | W40: El pago es considerado como gravado? (SI/NO) | Y40: ¿Efectuó retención? (SI/NO) | Z40: Normativa de soporte que aplicó para no efectuar la retención | AA40: Base imponible para retención (USD) | AB40: Porcentaje de retención | AC40: Monto de retención efectuada (USD) | AD40: Forma de pago (transferencia, tarjeta de crédito, compensación de cuentas) | AE40: ¿Requiere certificación de auditores independientes? (SI/NO) | AF40: Identificación del auditor independiente que realiza la certificación | AG40: Razón social del auditor independiente que realiza la certificación | AH40: País de residencia del auditor independiente que realiza la certificación | AI40: ¿Aplicó un Convenio para Evitar la Doble Imposición? (SI/NO) | AJ40: País con el que aplicó el Convenio para Evitar la Doble Imposición | AK40: Observaciones (j)
D41: No. Identificación tributaria | E41: Nombres y apellidos / Razón social | F41: País de residencia fiscal | G41: ¿Es parte relacionada? (SI/NO) | H41: Normativa para ser considerada como parte relacionada | I41: No. Identificación tributaria | J41: Nombres y apellidos / Razón social | K41: País de residencia fiscal | L41: ¿Es parte relacionada? (SI/NO) | M41: Normativa para ser considerada como parte relacionada | R41: ¿A quién se dio derecho del CDI? (intermediario/proveedor) | S41: Artículo del CDI que aplicó | X41: ¿Por qué no es gravado?
A42: (a) | B42: (b) | D42: (c) | I42: (c) | AD42: (k)
A48: TOTAL | U48: =SUM(U43:U47) -> 0.00 | V48: =SUM(V43:V47) -> 0.00 | Y48: =SUM(AC43:AC47) -> 0.00
A50: D. Detalle de créditos del exterior y el pago de intereses y capital. Se incluyen todas las operaciones del exterior.
A52: No. Casillero de la declaración de I. Renta | B52: Código de cuenta contable | C52: Nombre de cuenta contable | D52: Según información registrada en los Formularios de Registro de Créditos Externos del Banco Central del Ecuador (BCE) | X52: Tasa de Interés del Crédito (Fija o Variable) | Y52: Tipo de deuda (Originaria o Renegociada) | Z52: Tipo de cambio en dólares a la fecha de registro contable | AA52: Saldo inicial del capital (USD) | AB52: Saldo del capital al 31 de diciembre del año auditado (USD) | AC52: Pagos por intereses | AD52: Costo / Gasto financiero del año auditado | AE52: Pagos de capital | AF52: Pagos de capital por el año auditado | AG52: Observaciones (i)
D53: Datos del prestamista | K53: Ubicación del origen | M53: Fecha de las operaciones | P53: Número del registro | Q53: Porcentaje de tasa de interés | R53: Plazo (meses) | S53: Destino del crédito | T53: Moneda de pago (Dólar, Euro, etc.) | U53: Monto del crédito en la moneda de pago | V53: Monto del crédito en dólares | W53: Forma de pago (transferencia, tarjeta de crédito, compensación de cuentas)
D54: No. Identificación tributaria | E54: Nombres y apellidos / Razón social | F54: País de residencia fiscal | G54: ¿Es parte relacionada? (SI/NO) | H54: Normativa para ser considerada como parte relacionada | I54: ¿Es una Institución Financiera del exterior legalmente establecida? (SI/NO) | J54: ¿Es una entidad no financiera especializada calificada? (SI/NO) | K54: Ciudad | L54: País | M54: Suscripción | N54: Desembolso | O54: Registro
A55: (a) | B55: (b) | D55: (c) | S55: (e) | W55: ( e) | AC55: (f) | AE55: (f)
A61: TOTAL | U61: =SUM(U56:U60) -> 0.00 | V61: =SUM(V56:V60) -> 0.00 | AC61: =SUM(AC56:AC60) -> 0.00 | AD61: =SUM(AD56:AD60) -> 0.00 | AE61: =SUM(AE56:AE60) -> 0.00 | AF61: =SUM(AF56:AF60) -> 0.00
A63: e. Información de derivados financieros que mantiene la empresa
A65: No. Casillero de la declaración de I. Renta | B65: Código de cuenta contable | C65: Nombre de cuenta contable | D65: Datos de la contraparte extranjera | I65: Tipo de derivado financiero (g) | K65: Activo subyacente | L65: No. Contratos vigentes en el año auditado | M65: Fecha de inicio del contrato | N65: Fecha de vencimiento del contrato | O65: Valor del derivado financiero al 01 de enero del año auditado | P65: Valor del derivado financiero al 31 de diciembre del año auditado | Q65: Ganancia / Pérdida en el año auditado | R65: Observaciones (i)
D66: No. Identificación tributaria | E66: Nombres y apellidos / Razón social | F66: País de residencia fiscal | G66: ¿Es parte relacionada? (SI/NO) | H66: Normativa para ser considerada como parte relacionada
A67: (a) | B67: (b) | D67: (c)
A73: TOTAL | O73: =SUM(O68:O72) -> 0.00 | P73: =SUM(P68:P72) -> 0.00 | Q73: =SUM(Q68:Q72) -> 0.00
A82: 2.- INGRESOS DEL EXTERIOR
A84: Detalle de ingresos recibidos del exterior. Se incluyen todas las operaciones con o sin aplicaciòn de los Convenios para Evitar la Doble Imposición (CDI) (h)
A86: No. Casillero de la declaración de I. Renta | B86: Código de cuenta contable | C86: Nombre de cuenta contable | D86: Datos de la persona natural / sociedad cliente del exterior que realizó el pago | I86: Descripción de la transacción | K86: Aplicó un Convenio para evitar la Doble imposición (SI / NO) | L86: País con el cual se mantiene el CDI | M86: Tipo de renta según CDI | N86: Artículo del CDI que aplicó | O86: Método para evitar la doble imposición (Exención / Crédito) | P86: Moneda de pago (Dólar, Euro, etc.) | Q86: Monto del ingreso en la moneda de pago | R86: Monto del ingreso en dólares | S86: Base imponible para retención (USD) | T86: Porcentaje de retención | U86: Monto de la retención efectuada | V86: Observaciones (i)
D87: No. Identificación tributaria | E87: Nombres y apellidos / Razón social | F87: País de residencia fiscal | G87: ¿Es parte relacionada? (SI/NO) | H87: Normativa para ser considerada como parte relacionada
A88: (a) | B88: (b) | D88: (c)
A94: TOTAL | Q94: =SUM(Q89:Q93) -> 0.00 | R94: =SUM(R89:R93) -> 0.00 | U94: =SUM(U89:U93) -> 0.00
A96: Detalle de prestamos del exterior de partes relacionadas, condiciones, plazos, tasas de interés, garantías, detalle de pagos
A109: NOTAS :
A110: a) Corresponde al número del casillero del formulario 101, Declaración del impuesto a la renta y presentación de estados financieros para sociedades y establecimientos permanentes, vigente para el ejercicio fiscal auditado; en donde se declararon las operaciones con el exterior.
A111: b) Los códigos de cuentas deberán ser ingresados al máximo detalle posible, de tal forma que los componentes de cada casillero se puedan identificar claramente.
A112: c) Corresponde a los datos de la persona natural / sociedad del exterior con la que se efectuaron las operaciones indicadas y los requisitos formales para sustentar los gastos. Considerar la aplicación de lo previsto en la resolución NAC-DGERCGC22-00000056 publicada en el segundo suplemento del Registro Oficial No. 2019, de 29-XII-2022
A113: d) Corresponde al tipo de renta especificada en cada Convenio para Evitar la Doble Imposición (CDI) que aplica a la transacción informada, como por ejemplo: Beneficios Empresariales, Dividendos, Intereses, Regalías, Artistas, Estudiantes, etc.
A114: e) Describa las forma de pago (transferencia, tarjeta de crédito, compensación de cuentas)
A115: f) Corresponde a los desembolsos de dinero efectuados por el pago de intereses y capital del crédito en el exterior. Se debe registrar el valor acumulado desde el inicio del crédito.
A116: g) Señalar la clase de derivado financiero por ejemplo: opciones, futuros, swaps, forwards, etc.
A117: h)Se deberán detallar los ingresos que obtuvo la compañía en el año objeto de análisis. Por ejemplo: ganancias de capital, dividendos, entre otros.
A118: i) En caso de existir observaciones se debe revelar la explicación de las mismas, tanto en la columna de observaciones, como en la parte de Recomendaciones sobre Aspectos Tributarios.
A119: CERTIFICACIÓN: Al cargar el presente Anexo en la plataforma del 'SRI en Línea' previa autenticación e ingreso con usuario y contraseña, el representante legal del sujeto pasivo y su contador certifican la veracidad del contenido de este anexo del Informe de Cumplimiento Tributario.

Sheet INVENTARIOS A10
A1: INFORME DE CUMPLIMIENTO TRIBUTARIO | H1: Índice
A3: RAZÓN SOCIAL: | C3: COMPAÑÍA XYZ S.A.
A4: RUC: | C4: XXXXXXXXXXXXX
A5: EJERCICIO FISCAL AUDITADO: | C5: 2023
A6: NUMERO DE ADHESIVO DE LA DECLARACIÓN | C6: XXXXXXXXXXXXX
A8: DETALLE DE INVENTARIOS
A9: Sistema de control de inventarios aplicado: xxxxxxxxxxx
A10: Técnica de medición del costo utilizada: xxxxxxxxxxxxxx
A11: Método del cálculo del costo empleado: xxxxxxxxxxxxxxxxxxx
A13: Datos de la declaración del Impuesto a la Renta (a) | D13: Información contable | I13: Diferencias | J13: Observaciones
A14: Número de Casillero | B14: Nombre del Casillero | C14: Valor declarado | D14: Código de cuenta contable (al máximo detalle) | E14: Código del inventario | F14: Cantidad Existencia (usar unidad de medida que corresponda cuantificable) | G14: Valor Unitario Promedio | H14: Costo Total Promedio
C15: {1} | D15: (b) | E15: (c) | F15: {2} (d) | G15: {3} (e) | H15: {4}={2*3} (f) | J15: ( h)
A16: 7001 | B16: INVENTARIO INICIAL DE BIENES NO PRODUCIDOS POR EL SUJETO PASIVO
B19: TOTAL | H19: SUMA (4) | I19: {5}={4-1} (g)
A20: 7010 | B20: (-) INVENTARIO FINAL DE BIENES NO PRODUCIDOS POR EL SUJETO PASIVO | I20: =+G20-C20 -> 0.00
B23: TOTAL | H23: SUMA (4) | I23: {5}={4-1} (g)
A24: 7013 | B24: INVENTARIO INICIAL DE MATERIA PRIMA | I24: 0.00
I25: 0.00
I26: 0.00
A27: 7022 | B27: INVENTARIO FINAL DE MATERIA PRIMA | I27: 0.00
B30: TOTAL | H30: SUMA (4) | I30: {5}={4-1} (g)
A31: 7025 | B31: INVENTARIO INICIAL DE PRODUCTOS EN PROCESO | I31: 0.00
B34: TOTAL | H34: SUMA (4) | I34: {5}={4-1} (g)
A35: 7028 | B35: INVENTARIO FINAL DE PRODUCTOS EN PROCESO | I35: 0.00
B38: TOTAL | H38: SUMA (4) | I38: {5}={4-1} (g)
A39: 7031 | B39: INVENTARIO INICIAL PRODUCTOS TERMINADOS | I39: 0.00
B42: TOTAL | H42: SUMA (4) | I42: {5}={4-1} (g)
A43: 7034 | B43: (-) INVENTARIO FINAL DE PRODUCTOS TERMINADOS | I43: 0.00
A48: 7037 | B48: (+ / -) AJUSTES | I48: 0.00
B49: TOTAL | H49: SUMA (4) | I49: {5}={4-1} (g)
A52: REFERENCIAS:
A53: a) Corresponde al número, nombre y valor del casillero del formulario declaración del impuesto a la renta válida y presentación de estados financieros para sociedades y establecimientos permanentes. b) La información contable conforme los registros de acuerdo a los códigos y nombres de las cuentas contables deberán ser ingresados al máximo detalle posible, de tal forma que los componentes de cada casillero se puedan identificar claramente hasta la cuenta auxiliar contable. c) Corresponde la Código de cada Item del inventario. d) Corresponde al Numero de Unidades en los Inventarios determinados, por cada ITEM e) Costo unitario por cada ITEM f) Es el resultado de multiplicar unidad por Costo unitario g) Es la Diferencia del total de los Inventarios declarados con su contabilidad.
A57: CERTIFICACIÓN: Al cargar el presente Anexo en la plataforma del 'SRI en Línea' previa autenticación e ingreso con usuario y contraseña, el representante legal del sujeto pasivo y su contador certifican la veracidad del contenido de este anexo del Informe de Cumplimiento Tributario.
